fUSD/lending_fUSD_20240404
["ID","MTS","AMOUNT","RATE_DAILY","PERIOD"]
[321481426,1712230242949,-500.0,0.00038999,7]
[321481428,1712230242959,-500.0,0.00038999,7]
[321481430,1712230242968,-500.0,0.00038999,7]
[321481432,1712230242978,-500.0,0.00038999,7]
[321481434,1712230242991,-500.0,0.00038999,7]
[321481436,1712230243001,-500.0,0.00038999,7]
[321481438,1712230243010,-500.0,0.00038999,7]
[321481441,1712230243020,-500.0,0.00038999,7]
[321481443,1712230243030,-500.0,0.00038999,7]
[321481445,1712230243040,-500.0,0.00038999,7]
[321481447,1712230243049,-500.0,0.00038999,7]
[321481449,1712230243060,-500.0,0.00038999,7]
[321481450,1712230243070,-500.0,0.00038999,7]
[321481452,1712230243081,-500.0,0.00038999,7]
[321481454,1712230243091,-500.0,0.00038999,7]
[321481456,1712230243101,-500.0,0.00038999,7]
[321481458,1712230243111,-500.0,0.00038999,7]
[321481459,1712230243121,-500.0,0.00038999,7]
[321481460,1712230243131,-500.0,0.00038999,7]
[321481461,1712230243141,-500.0,0.00038999,7]
[321481462,1712230243152,-500.0,0.00038999,7]
[321481463,1712230243162,-500.0,0.00038999,7]
[321481464,1712230243171,-500.0,0.00038999,7]
[321481465,1712230243181,-500.0,0.00038999,7]
[321481466,1712230243190,-500.0,0.00038999,7]
[321481467,1712230243200,-500.0,0.00038999,7]
[321481468,1712230243210,-500.0,0.00038999,7]
[321481469,1712230243219,-500.0,0.00038999,7]
[321481470,1712230243229,-500.0,0.00038999,7]
[321481471,1712230243239,-307.96,0.00038999,7]
[321481472,1712230243249,-500.0,0.00038999,7]
[321481473,1712230243259,-500.0,0.00038999,7]
[321481474,1712230243268,-469.49,0.00038999,7]
[321481475,1712230243277,-500.0,0.00038999,7]
[321481476,1712230243287,-500.0,0.00038999,7]
[321481477,1712230243296,-500.0,0.00038999,7]
[321481478,1712230243306,-500.0,0.00038999,7]
[321481479,1712230243315,-500.0,0.00038999,7]
[321481480,1712230243325,-500.0,0.00038999,7]
[321481481,1712230243335,-500.0,0.00038999,7]
[321481482,1712230243344,-373.57,0.00038999,2]
[321481483,1712230243353,-373.57,0.00038999,2]
[321481484,1712230243363,-373.57,0.00038999,2]
[321481485,1712230243372,-373.57,0.00038999,2]
[321481486,1712230243381,-373.57,0.00038999,2]
[321481487,1712230243391,-373.57,0.00038999,2]
[321481488,1712230243401,-373.57,0.00038999,2]
[321481489,1712230243410,-373.57,0.00038999,2]
[321481490,1712230243420,-373.57,0.00038999,2]
[321481491,1712230243429,-373.57,0.00038999,2]
[321481492,1712230243439,-2669720.00337622,0.00039,8]
[321481494,1712230243448,-1211.0,0.00039,4]
[321481495,1712230243457,-1000.0,0.00039,2]
[321481497,1712230243467,-2000.0,0.00039,4]
[321481498,1712230243476,-1000.0,0.00039,2]
[321481499,1712230243486,-15000.0,0.00039,2]
[321481500,1712230243496,-7263.28347,0.00039,2]
[321481501,1712230243505,-220000.0,0.00039,3]
[321481502,1712230243515,-542.99954631,0.00039012,7]
[321481503,1712230243526,-154.06850799,0.00039073,7]
[321481504,1712230243536,-300.12,0.0003909,2]
[321481505,1712230243547,-542.99954631,0.00039112,7]
[321481506,1712230243556,-159.12958476,0.00039161,7]
[321481507,1712230243567,-376.42967792,0.00039289,7]
[321481508,1712230243577,-954.24,0.00039323,2]
[321481509,1712230243587,-304.07,0.00039349,2]
[321481510,1712230243596,-150.0,0.00039349,2]
[321481511,1712230243606,-244.73,0.00039349,2]
[321481512,1712230243615,-339.96,0.00039349,2]
[321481513,1712230243625,-156.97,0.00039349,2]
[321481514,1712230243634,-150.0,0.00039349,2]
[321481515,1712230243644,-150.0,0.00039349,2]
[321481516,1712230243653,-417.08,0.00039349,2]
[321481517,1712230243663,-150.0,0.00039349,2]
[321481518,1712230243674,-348.62,0.00039349,2]
[321481519,1712230243683,-417.08,0.00039349,2]
[321481520,1712230243694,-150.0,0.00039349,2]
[321481521,1712230243707,-528.68,0.00039349,2]
[321481522,1712230243718,-519.43,0.00039349,2]
[321481523,1712230243727,-150.0,0.00039349,2]
[321481524,1712230243737,-150.0,0.00039349,2]
[321481525,1712230243747,-150.0,0.00039349,2]
[321481526,1712230243757,-176.3492321,0.00039376,7]
[321481527,1712230243767,-1042.32000768,0.00039406,13]
[321481528,1712230243777,-6161.4,0.00039484,2]
[321481529,1712230243789,-9984.44,0.00039484,2]
[321481530,1712230243799,-154.06850799,0.00039486,7]
[321481531,1712230243809,-189.38007095,0.00039488,13]
[321481532,1712230243818,-360.0,0.0003949,2]
[321481533,1712230243828,-189.30894272,0.00039492,7]
[321481534,1712230243838,-842.4319542,0.00039496,2]
[321481535,1712230243847,-157.15500887,0.00039496,2]
[321481536,1712230243856,-1948.28278836,0.00039497,2]
[321481537,1712230243866,-1948.28278836,0.00039497,2]
[321481538,1712230243876,-396341.71893344,0.000395,2]
[321481539,1712230243885,-542.99954631,0.00039532,7]
[321481540,1712230243895,-10000.0,0.00039559,2]
[321481541,1712230243904,-1000.0,0.0003956,2]
[321481542,1712230243913,-1000.0,0.0003956,2]
[321481543,1712230243923,-1000.0,0.0003956,2]
[321481544,1712230243933,-1000.0,0.0003956,2]
[321481545,1712230243942,-1000.0,0.0003956,2]
[321481546,1712230243951,-1000.0,0.0003956,2]
[321481547,1712230243961,-1000.0,0.0003956,2]
[321481548,1712230243970,-1000.0,0.0003956,2]
[321481549,1712230243980,-1000.0,0.0003956,2]
[321481550,1712230243989,-1000.0,0.0003956,2]
[321481551,1712230243999,-1000.0,0.0003956,2]
[321481552,1712230244009,-1000.0,0.0003956,2]
[321481553,1712230244018,-1000.0,0.0003956,2]
[321481554,1712230244027,-1000.0,0.0003956,2]
[321481555,1712230244036,-1000.0,0.0003956,2]
[321481556,1712230244046,-1000.0,0.0003956,2]
[321481557,1712230244055,-1000.0,0.0003956,2]
[321481558,1712230244064,-1042.05888118,0.0003956,2]
[321481559,1712230244075,-2485.219319,0.00039561,2]
[321481560,1712230244084,-17595.3218637,0.00039561,2]
[321481561,1712230244094,-6661.4301929,0.00039561,2]
[321481562,1712230244104,-58251.8741947,0.00039561,2]
[321481563,1712230244113,-1000.0,0.0003957,2]
[321481564,1712230244123,-1000.0,0.0003957,2]
[321481565,1712230244133,-1006.2972741,0.0003957,2]
[321481566,1712230244143,-163.19664356,0.00039578,7]
[321481567,1712230244152,-200.0,0.00039578,7]
[321481568,1712230244162,-200.0,0.00039578,7]
[321481569,1712230244172,-13637.97951852,0.00039585,2]
[321481570,1712230244182,-7239150.37964035,0.00039588,2]
[321481571,1712230244193,-200.0,0.00039596,7]
[321481572,1712230244204,-200.0,0.00039596,7]
[321481573,1712230244214,-12308.71607921,0.00039597,2]
[321481574,1712230244224,-243217.10980755,0.000396,2]
[321481575,1712230244234,-482.81,0.000396,7]
[321481576,1712230244244,-603.13,0.000396,7]
[321481577,1712230244253,-467.85,0.000396,7]
[321481578,1712230244263,-275.5,0.000396,2]
[321481579,1712230244273,-188.12428793,0.00039613,4]
[321481580,1712230244283,-155.0,0.00039613,4]
[321481581,1712230244294,-943.94394429,0.00039613,4]
[321481582,1712230244303,-200.0,0.00039623,15]
[321481583,1712230244313,-500.0,0.00039623,20]
[321481584,1712230244324,-200.0,0.00039676,15]
[321481585,1712230244333,-1398.444825,0.0003968,17]
[321481586,1712230244342,-1000.0,0.000397,17]
[321481587,1712230244352,-1000.0,0.0003972,17]
[321481588,1712230244362,-2252.42331885,0.00039722,3]
[321481589,1712230244371,-330617.82573065,0.00039722,20]
[321481590,1712230244421,-4555.82071812,0.00039722,20]
[321481591,1712230244433,-2655.7393363,0.00039722,20]
[321481592,1712230244445,-2202.955261,0.00039722,20]
[321481594,1712230245783,-150.0,0.00028552,2]
[321481595,1712230245794,-150.0,0.00028556,2]
[321481596,1712230245803,-150.0,0.00028557,2]
[321481597,1712230245812,-150.0,0.00028561,2]
[321481598,1712230245822,-150.0,0.00028563,2]
[321481599,1712230245832,-150.0,0.00028568,2]
[321481600,1712230245841,-150.0,0.00028573,2]
[321481601,1712230245850,-150.0,0.00028577,2]
[321481602,1712230245859,-150.0,0.0002858,2]
[321481603,1712230245868,-150.0,0.00028581,2]
[321481604,1712230245878,-150.0,0.00028598,2]
[321481605,1712230245887,-150.0,0.00028602,2]
[321481606,1712230245896,-150.0,0.00028608,2]
[321481607,1712230245906,-150.0,0.0002862,2]
[321481608,1712230245915,-150.0,0.00028632,2]
[321481609,1712230245924,-150.0,0.00028639,2]
[321481610,1712230245933,-150.0,0.0002864,2]
[321481611,1712230245942,-150.0,0.00028646,2]
[321481612,1712230245952,-150.0,0.00028656,2]
[321481613,1712230245963,-150.0,0.00028662,2]
[321481614,1712230245972,-150.0,0.00028668,2]
[321481615,1712230245982,-150.0,0.00028682,2]
[321481616,1712230245991,-150.0,0.00028685,2]
[321481617,1712230246000,-150.0,0.00028693,2]
[321481618,1712230246009,-150.0,0.00028705,2]
[321481619,1712230246018,-150.0,0.00028714,2]
[321481620,1712230246027,-150.0,0.00028716,2]
[321481621,1712230246036,-150.0,0.00028719,2]
[321481622,1712230246045,-150.0,0.0002872,2]
[321481623,1712230246054,-150.0,0.00028727,2]
[321481624,1712230246063,-150.0,0.00028728,2]
[321481625,1712230246072,-150.0,0.00028729,2]
[321481626,1712230246081,-150.0,0.00028745,2]
[321481627,1712230246091,-150.0,0.0002876,2]
[321481628,1712230246100,-150.0,0.00028761,2]
[321481629,1712230246109,-150.0,0.00028769,2]
[321481630,1712230246118,-150.0,0.0002877,2]
[321481631,1712230246127,-150.0,0.00028775,2]
[321481632,1712230246136,-150.0,0.00028776,2]
[321481633,1712230246145,-150.0,0.00028778,2]
[321481634,1712230246154,-150.0,0.00028779,2]
[321481635,1712230246163,-150.0,0.00028782,2]
[321481636,1712230246172,-150.0,0.00028792,2]
[321481637,1712230246181,-150.0,0.00028795,2]
[321481638,1712230246190,-150.0,0.00028796,2]
[321481639,1712230246199,-150.0,0.00028801,2]
[321481640,1712230246208,-150.0,0.00028809,2]
[321481641,1712230246218,-150.0,0.00028816,2]
[321481642,1712230246227,-176335.32820092,0.00039722,20]
[321481643,1712230246236,-26551.44371538,0.00039722,7]
[321481644,1712230246245,-4575.51209914,0.00039722,7]
[321481645,1712230246255,-150.0,0.00039722,2]
[321481646,1712230246264,-150.0,0.00039722,2]
[321481647,1712230246273,-200.0,0.00039722,2]
[321481648,1712230246282,-50000.0,0.00039722,16]
[321481649,1712230246291,-50000.0,0.00039722,17]
[321481650,1712230246300,-50000.0,0.00039722,19]
[321481651,1712230246309,-50000.0,0.00039722,18]
[321481652,1712230246318,-50000.0,0.00039722,20]
[321481653,1712230246331,-927.89065783,0.00039722,2]
[321481654,1712230246340,-18495.37494677,0.00039722,7]
[321481655,1712230246349,-7699.49556053,0.00039722,2]
[321481656,1712230246359,-250.22282649,0.00039722,2]
[321481657,1712230246369,-50000.0,0.00039722,15]
[321481658,1712230246378,-1752.046049,0.00039722,2]
[321481659,1712230246387,-1000.0,0.0003974,17]
[321481661,1712230246396,-1000.0,0.0003976,17]
[321481663,1712230246406,-1000.0,0.0003978,17]
[321481665,1712230246415,-150.0,0.00039798,2]
[321481667,1712230246424,-1000.0,0.000398,17]
[321481669,1712230246433,-376.42967792,0.00039812,7]
[321481671,1712230246443,-176.3492321,0.00039816,7]
[321481673,1712230246452,-1000.0,0.0003982,17]
[321481675,1712230246461,-159.10975516,0.00039827,7]
[321481677,1712230246470,-1000.0,0.0003984,17]
[321481679,1712230246480,-1175.393457,0.0003984,17]
[321481681,1712230246489,-1000.0,0.0003986,17]
[321481683,1712230246499,-1000.0,0.0003986,17]
[321481685,1712230246508,-1000.0,0.0003988,17]
[321481688,1712230246518,-1000.0,0.0003988,17]
[321481690,1712230246528,-176.3492321,0.0003989,7]
[321481692,1712230246537,-1600.45488383,0.00039894,5]
[321481694,1712230246546,-150.0,0.00039899,2]
[321481696,1712230246555,-150.0,0.000399,15]
[321481697,1712230246563,-150.0,0.000399,15]
[321481700,1712230246575,-710.0,0.000399,2]
[321481702,1712230246585,-200.0,0.000399,15]
[321481704,1712230246594,-200.0,0.000399,15]
[321481706,1712230246604,-150.0,0.000399,6]
[321481708,1712230246613,-221.0,0.000399,2]
[321481710,1712230246625,-1000.0,0.000399,17]
[321481712,1712230246634,-1000.0,0.000399,17]
[321481714,1712230246645,-305.64072438,0.00039906,7]
[321481716,1712230246654,-154.06850799,0.0003992,7]
[321481718,1712230246664,-155.26020619,0.00039923,7]
[321481720,1712230246673,-1000.0,0.0003997,2]
[321481722,1712230246683,-1000.0,0.0003997,2]
[321481724,1712230246693,-243.57581149,0.00039997,4]
[321481726,1712230246703,-417.98042323,0.00039999,31]
[321481728,1712230246714,-1100.0,0.0004,7]
[321481730,1712230246723,-5758.8947196,0.0004,4]
[321481732,1712230246732,-22103.7237332,0.0004,4]
[321481734,1712230246742,-192.76675003,0.0004,2]
[321481736,1712230246751,-25925.69492793,0.0004,7]
[321481738,1712230246760,-275.29759929,0.0004,2]
[321481740,1712230246769,-547.14230713,0.0004,4]
[321481742,1712230246779,-369.09860845,0.0004,2]
[321481766,1712230246997,-500.0,0.0004,4]
[321481768,1712230247007,-500.0,0.0004,4]
[321481770,1712230247016,-5651.02553624,0.0004,4]
[321481772,1712230247025,-1570.65515847,0.0004,60]
[321481774,1712230247034,-482.82080249,0.0004,30]
[321481776,1712230247043,-530.08933711,0.0004,30]
[321481778,1712230247052,-509.85214185,0.0004,30]
[321481780,1712230247061,-171.13123874,0.0004,30]
[321481782,1712230247071,-367.14545274,0.0004,30]
[321481784,1712230247081,-1000.0,0.0004,3]
[321481786,1712230247089,-1000.0,0.0004,3]
[321481787,1712230247100,-1000.0,0.0004,3]
[321481788,1712230247109,-26385.73571991,0.0004,2]
[321481789,1712230247139,-150.0,0.00028557,2]
[321481790,1712230247149,-150.0,0.00028638,2]
[321481791,1712230247157,-357.0,0.0004,2]
[321481794,1712230247351,-575.15989032,0.00024999,2]
[321481795,1712230247362,-150.0,0.00028603,2]
[321481796,1712230247371,-150.0,0.00028604,2]
[321481797,1712230247381,-150.0,0.00028618,2]
[321481798,1712230247392,-35.14616104,0.00028626,2]
[321481799,1712230247404,-114.85383896,0.00028626,2]
[321481800,1712230247414,-150.0,0.00028646,2]
[321481801,1712230247423,-150.0,0.00028669,2]
[321481802,1712230247432,-150.0,0.00028702,2]
[321481803,1712230247441,-150.0,0.00028731,2]
[321481804,1712230247451,-150.0,0.00028731,2]
[321481805,1712230247460,-150.0,0.00028741,2]
[321481806,1712230247470,-150.0,0.00028744,2]
[321481807,1712230247479,-150.0,0.00028765,2]
[321481808,1712230247489,-150.0,0.0002884,2]
[321481809,1712230247498,-2554.23744066,0.0004,2]
[321481810,1712230247509,-315.6,0.0004,2]
[321481811,1712230248504,-150.0,0.00028564,2]
[321481812,1712230248514,-150.0,0.00028584,2]
[321481813,1712230248524,-150.0,0.00028598,2]
[321481814,1712230248533,-150.0,0.00028618,2]
[321481815,1712230248543,-150.0,0.0002866,2]
[321481816,1712230248553,-150.0,0.00028673,2]
[321481817,1712230248563,-150.0,0.00028703,2]
[321481818,1712230248575,-150.0,0.00028745,2]
[321481819,1712230248585,-150.0,0.00028761,2]
[321481820,1712230248595,-150.0,0.00028766,2]
[321481821,1712230248605,-150.0,0.00028769,2]
[321481822,1712230248615,-150.0,0.00028812,2]
[321481823,1712230248625,-150.0,0.00028838,2]
[321481824,1712230248634,-150.0,0.00029214,2]
[321481825,1712230248644,-150.0,0.00029292,2]
[321481826,1712230248654,-150.0,0.00029357,2]
[321481827,1712230248663,-150.0,0.00029427,2]
[321481828,1712230248673,-150.0,0.00029428,2]
[321481829,1712230248683,-467.240365,0.0004,2]
[321481830,1712230248735,-629.40662785,0.0004,2]
[321481831,1712230248776,-1231.8214845,0.0004,2]
[321481832,1712230249636,-250.0,0.00028216,2]
[321481833,1712230249646,-750.0,0.00028736,5]
[321481834,1712230249829,-134.0,0.00028736,5]
[321481835,1712230249839,-399.52543961,0.00033029,2]
[321481837,1712230577415,750.0,0.00023,3]
[321481862,1712231432348,-435.75925957,0.00023,2]
[321481863,1712231432459,-11872.95681964,0.00023,2]
[321481864,1712231432469,-158.0207477,0.0002479,2]
[321481865,1712231432479,-1380.2279872,0.0002489,2]
[321481866,1712231432490,-524.78067754,0.00024899,2]
[321481867,1712231432499,-37608.73206201,0.000249,2]
[321481868,1712231432513,-14937.06966477,0.000249,2]
[321481907,1712231438175,-2319.38669735,0.000249,2]
[321481911,1712231438585,-4405.36287587,0.000249,2]
[321481912,1712231438595,-2197.24144358,0.0002497,2]
[321481913,1712231438605,-1000.0,0.00026226,5]
[321481914,1712231438614,-1657.0,0.000267,2]
[321481915,1712231438625,-236.11,0.00027927,2]
[321481916,1712231438634,-285.411,0.00029475,2]
[321481917,1712231438643,-150.0,0.00029475,2]
[321481918,1712231438653,-185.05,0.00029475,2]
[321481919,1712231438662,-312.62468055,0.00029475,2]
[321481920,1712231438704,-533.64531945,0.00029475,2]
[321481921,1712231438713,-2293.48,0.00029475,2]
[321481922,1712231438723,-1179.0,0.00029475,2]
[321481923,1712231438733,-374.288,0.00029475,2]
[321481924,1712231438744,-499.99,0.00029475,2]
[321481925,1712231438753,-2640.21942399,0.0002999,2]
[321481926,1712231438763,-325.68,0.0002999,2]
[321481927,1712231438773,-405.20748901,0.0003,4]
[321481928,1712231438783,-155.0,0.0003,2]
[321481929,1712231438794,-3206.28076084,0.0003,2]
[321481930,1712231438805,-606.74427312,0.0003,4]
[321481931,1712231438815,-200.0,0.0003,7]
[321481932,1712231438825,-200.0,0.0003,7]
[321481933,1712231438835,-499.99,0.0003,2]
[321481934,1712231438845,-331.73521384,0.00032,4]
[321481935,1712231438854,-156.25,0.00032877,2]
[321481936,1712231438864,-156.25,0.00032877,2]
[321481937,1712231438874,-200.0,0.00033029,2]
[321481938,1712231438886,-1600.45488383,0.00033029,4]
[321481939,1712231438895,-155.0,0.00033029,2]
[321481940,1712231438903,-155.0,0.00033029,4]
[321481941,1712231438911,-188.12428793,0.00033029,4]
[321481942,1712231438921,-943.94394429,0.00033029,4]
[321481943,1712231438931,-599.23,0.00033328,2]
[321481944,1712231438941,-150.0,0.00034803,2]
[321481945,1712231438951,-159.61,0.00034865,2]
[321481946,1712231438961,-250.0,0.0003487,2]
[321481947,1712231438971,-250.0,0.00034875,112]
[321481948,1712231438981,-901.27036603,0.00034913,2]
[321481949,1712231438994,-10530.28307348,0.00034913,2]
[321481950,1712231439009,-2890.77673581,0.00034913,2]
[321481951,1712231439035,-9567.66982468,0.00034913,2]
[321481952,1712231439045,-1338.42,0.00034948,2]
[321481953,1712231439062,-416.29965217,0.00034967,7]
[321481954,1712231439073,-6068.2,0.00035056,2]
[321481955,1712231439083,-150.0,0.00035113,2]
[321481956,1712231439093,-154.06850799,0.00035116,7]
[321481957,1712231439104,-408.95,0.00035137,2]
[321481958,1712231439113,-547.58,0.00035142,2]
[321481959,1712231439124,-500.0,0.00035143,2]
[321481960,1712231439136,-238.6,0.00035168,2]
[321481961,1712231439146,-5957.31,0.00035188,2]
[321481962,1712231439156,-152.02520008,0.0003524,7]
[321481963,1712231439166,-165.85,0.00035288,2]
[321481964,1712231439175,-156.67,0.00035327,2]
[321481965,1712231439184,-403.65,0.00035374,2]
[321481966,1712231439194,-509.87,0.00035384,2]
[321481967,1712231439204,-153.09301931,0.00035435,7]
[321481968,1712231439213,-153.09301931,0.00035576,7]
[321481969,1712231439222,-152.54038995,0.00035584,7]
[321481970,1712231439232,-599.23,0.00035592,2]
[321481971,1712231439242,-263.50077454,0.00035623,7]
[321481972,1712231439251,-156.09819117,0.00035675,7]
[321481973,1712231439263,-150.0,0.00035732,2]
[321481974,1712231439274,-159.12958476,0.00035841,7]
[321481975,1712231439285,-263.50077454,0.00035936,7]
[321481976,1712231439295,-153.09301931,0.00035964,7]
[321481977,1712231439305,-1000.0,0.00035979,2]
[321481978,1712231439316,-263.50077454,0.00035986,7]
[321481979,1712231439326,-158.84155654,0.00035993,7]
[321481980,1712231439335,-1515.01,0.00036022,2]
[321481981,1712231439344,-263.50077454,0.00036049,7]
[321481982,1712231439354,-153.87719976,0.00036103,7]
[321481983,1712231439364,-267.0305,0.00036219,2]
[321481984,1712231439374,-167.86,0.00036285,2]
[321481985,1712231439384,-12.43723681,0.00036318,7]
[321481986,1712231439403,-141.43996295,0.00036318,7]
[321481987,1712231439413,-152.02520008,0.00036339,7]
[321481988,1712231439424,-244.6,0.0003636,2]
[321481989,1712231439433,-166.99346795,0.00036361,7]
[321481990,1712231439444,-153.74329263,0.00036398,7]
[321481991,1712231439454,-152.02520008,0.00036418,7]
[321481992,1712231439465,-153.09301931,0.00036478,7]
[321481993,1712231439474,-153.09301931,0.00036495,7]
[321481994,1712231439484,-158.84155654,0.00036502,7]
[321481995,1712231439494,-156.09819117,0.00036512,7]
[321481996,1712231439503,-153.87719976,0.00036532,7]
[321481997,1712231439512,-153.09301931,0.00036533,7]
[321481998,1712231439521,-416.29965217,0.00036598,7]
[321481999,1712231439530,-164.06775036,0.00036611,7]
[321482000,1712231439539,-77.25601275,0.00036614,7]
[321482001,1712231439551,-75.2843772,0.00036614,7]
[321482002,1712231439561,-150.0,0.00036662,2]
[321482003,1712231439571,-154.06850799,0.00036715,7]
[321482004,1712231439581,-153.09301931,0.00036751,7]
[321482005,1712231439590,-155.26020619,0.00036784,7]
[321482006,1712231439600,-263.50077454,0.00036808,7]
[321482007,1712231439609,-164.06775036,0.00036933,7]
[321482008,1712231439619,-157.30997333,0.00037048,7]
[321482009,1712231439629,-166.99346797,0.00037072,7]
[321482010,1712231439638,-153.45332324,0.00037078,7]
[321482011,1712231439647,-152.54038995,0.00037078,7]
[321482012,1712231439656,-158.84155654,0.00037235,7]
[321482013,1712231439665,-263.50077454,0.000373,7]
[321482014,1712231439674,-263.50077454,0.00037439,7]
[321482015,1712231439684,-155.6062806,0.00037479,2]
[321482016,1712231439694,-1042.5941239,0.00037479,2]
[321482017,1712231439705,-154.78369154,0.00037579,7]
[321482018,1712231439715,-150.0,0.00037592,2]
[321482019,1712231439724,-164.06775036,0.00037594,7]
[321482020,1712231439736,-163.19664356,0.00037639,7]
[321482021,1712231439746,-164.06775036,0.00037706,7]
[321482022,1712231439756,-244.6,0.0003773,2]
[321482023,1712231439767,-152.54038995,0.00037753,7]
[321482024,1712231439777,-158.84155654,0.00037833,7]
[321482025,1712231439788,-210.33505325,0.00037856,2]
[321482026,1712231439800,-388.89494675,0.00037856,2]
[321482027,1712231439810,-164.06775036,0.00037915,7]
[321482028,1712231439820,-167.16098968,0.00037921,7]
[321482029,1712231439830,-152.02520008,0.00037969,7]
[321482030,1712231439839,-1469.9,0.00038027,15]
[321482031,1712231439849,-152.54038995,0.00038036,7]
[321482032,1712231439858,-152.02520008,0.00038068,7]
[321482033,1712231439867,-152.54038995,0.00038078,7]
[321482034,1712231439879,-155.26020619,0.0003808,7]
[321482035,1712231439889,-152.02520008,0.00038138,7]
[321482036,1712231439898,-258.05875408,0.00038257,7]
[321482073,1712231440443,-5.44202046,0.00038257,7]
[321482074,1712231440453,-153.09301931,0.00038282,7]
[321482076,1712231440462,-180.0,0.00038369,2]
[321482078,1712231440471,-164.06775036,0.00038375,7]
[321482080,1712231440481,-337.39721587,0.000385,4]
[321482083,1712231440500,-152.72093466,0.000385,4]
[321482085,1712231440509,-150.0,0.00038521,2]
[321482086,1712231440518,-350.17130534,0.00038524,7]
[321482102,1712231440640,-6515.36212,0.00038524,7]
[321482105,1712231440651,-1316.7767064,0.00038524,7]
[321482109,1712231440662,-364.0612715,0.00038524,7]
[321482121,1712231440744,-471.23195869,0.00038524,7]
[321482277,1712231443118,-50008.86755,0.00038524,7]
[321482374,1712231618498,-1017.92320592,0.000249,2]
[321482375,1712231618519,-1325.79878355,0.000249,2]
[321482376,1712231618540,-314.31001774,0.000249,2]
[321482377,1712231618560,-2197.24144358,0.0002497,2]
[321482378,1712231618580,-1776.70408394,0.00024998,2]
[321482379,1712231618601,-2620.22951158,0.00024999,2]
[321482380,1712231618623,-3246895.19445369,0.00025,2]
[321482390,1712232140965,-199.65396562,0.00023627,2]
[321482391,1712232140987,-1800.34603438,0.00023627,2]
[321482392,1712232141920,-2000.0,0.00023627,2]
[321482393,1712232142352,-517.38456542,0.00023627,2]
[321482394,1712232142375,-1172.23,0.00023628,2]
[321482395,1712232142397,-158.07,0.00023638,2]
[321482396,1712232142419,-152.31543458,0.00024,2]
[321482397,1712232142787,-119.67288879,0.00024,2]
[321482398,1712232142808,-1088.54,0.00024167,2]
[321482399,1712232142830,-791.78711121,0.00024173,2]
[321482400,1712232144049,-500.0,0.00023626,2]
[321482401,1712232144072,-296.75288879,0.00024173,2]
[321482402,1712232144095,-1088.54,0.00024179,2]
[321482403,1712232144672,114.70711121,0.00023803,2]
[321482404,1712232182676,250.0,0.00023,3]
[321482405,1712232187093,-1023.93,0.00021775,2]
[321482406,1712232187116,-155.57393406,0.00023803,2]
[321482407,1712232187139,-44.12288879,0.00023803,2]
[321482408,1712232187162,-776.37317715,0.00024039,2]
[321482409,1712232187662,-247.55682285,0.00024039,2]
[321482410,1712232187686,-158.83,0.00024113,2]
[321482411,1712232187708,-1088.54,0.00024186,2]
[321482412,1712232187732,-505.07317715,0.00024192,2]
[321482413,1712232188101,-583.46682285,0.00024192,2]
[321482414,1712232188123,-1088.54,0.00024198,2]
[321482415,1712232192192,226.38928367,0.00023803,2]
[321482416,1712232192980,101.60389348,0.00023803,2]
[321482417,1712232192999,203.86982347,0.00023803,2]
[321482418,1712232228236,1796.13017653,0.00024204,2]
[321482419,1712232228261,2000.0,0.00024204,2]
[321482420,1712232228284,513.0031507,0.00024204,2]